Cogmind - Beta 13 @@@ ROGUE MODE // 2024.05.12 @ 19:49:30 Player: Tyrockal Result: Destroyed by G-50 Soldier with Heavy Laser Performance ------------- Evolutions (2) 1000 Regions Visited (5) 1000 Robots Destroyed (15) 75 Value Destroyed (328) 328 Prototype IDs (3) 60 Alien Tech Used (0) 0 Bonus (314) 314 TOTAL SCORE: 2777 Bonus ------- Follower Combat Kills 14 Aligned with FarCom 300 Cogmind --------- Core Integrity 0/550 Matter 28/300 Energy 100/100 System Corruption 27% Temperature Cool (9) Movement Core (700) Ox13 Location -8/Materials Parts ------- > --- POWER (2) -------- (None) > --- PROPULSION (3) --- (None) > --- UTILITY (4) ------ High-capacity Storage Unit Signal Interpreter > --- WEAPON (2) ------- (None) > --- INVENTORY (20) --- Spread Laser Autogun Mining Laser Peak State ------------ > --- POWER ------------ Ion Engine > --- PROPULSION ------- Advanced Treads Flight Unit Flight Unit > --- UTILITY ---------- Superbattery Terrain Scanner Terrain Scan Processor Utility Shielding > --- WEAPON ----------- Improved Medium Laser Mining Laser > --- INVENTORY -------- Wheel Particle Gun Beam Cannon Autogun Flak Cannon [Rating: 24] Favorites ----------- Power Ion Engine Engine Ion Engine Propulsion Light Treads Treads Light Treads Leg Titanium Leg Wheel Wheel Flight Unit Flight Unit Utility Utility Shielding Device Cooling System Storage Superbattery Processor Visual Processing Unit Protection Utility Shielding Weapon Light Cannon Energy Gun Shock Rifle Energy Cannon Beam Cannon Ballistic Gun Autogun Ballistic Cannon Light Cannon Special Weapon Mining Laser Build | -11 -10 -10 -10 -9 -8 ------- Run | Yrd Mat Min Exi Min Mat Slots Evolved 4 | . . . . . 4 Power 1 | . . . . . 1 Propulsion 1 | . . . . . 1 Utility 2 | . . . . . 2 Weapon . | . . . . . . Parts Attached 40 | 6 4 3 1 8 18 Power 2 | 1 . 1 . . . Engine 2 | 1 . 1 . . . Core . | . . . . . . Reactor . | . . . . . . Propulsion 11 | 2 . . . 5 4 Treads 3 | 2 . . . . 1 Leg 1 | . . . . . 1 Wheel 1 | . . . . . 1 Hover . | . . . . . . Flight 6 | . . . . 5 1 Utility 10 | 1 2 . 1 . 6 Device 2 | . . . . . 2 Storage 3 | 1 . . 1 . 1 Processor 3 | . 1 . . . 2 Hackware . | . . . . . . Protection 2 | . 1 . . . 1 Artifact . | . . . . . . Weapon 17 | 2 2 2 . 3 8 Energy Gun 4 | . . . . . 4 Energy Cannon 1 | . . . . 1 . Ballistic Gun 4 | 2 . . . 1 1 Ballistic Cannon 6 | . 2 2 . . 2 Launcher . | . . . . . . Special Weapon 2 | . . . . 1 1 Impact Weapon . | . . . . . . Slashing Weapon . | . . . . . . Piercing Weapon . | . . . . . . Special Melee Weapon . | . . . . . . Unidentified Prototypes 3 | . . . 1 . 2 Parts Lost 17 | . . 2 . . 15 Power 2 | . . 1 . . 1 Propulsion 5 | . . . . . 5 Utility 5 | . . . . . 5 Weapon 5 | . . 1 . . 4 Highest Loss Streak 7 | . . 2 . . 7 To Critical Strikes . | . . . . . . Average Slot Usage (%) 84 | . 98 98 100 99 60 Engine 9 | . 14 12 14 14 1 Treads 11 | . 28 28 28 . 4 Leg 2 | . . . . . 6 Wheel 2 | . . . . . 6 Flight 9 | . . . . 27 6 Device 1 | . . . . . 4 Storage 7 | . 9 . 8 14 5 Processor 4 | . 4 14 5 . 5 Protection 9 | . 13 14 14 14 2 Energy Gun 3 | . . . . . 8 Energy Cannon 2 | . . . . 10 . Ballistic Gun 3 | . 15 . . 6 . Ballistic Cannon 13 | . 12 28 28 7 6 Special Weapon 1 | . . . . 3 2 Naked Turns . | . . . . . . Heaviest Build 61 | 13 17 12 16 16 61 Greatest Support 40 | 40 40 40 40 40 22 Greatest Overweight (x) 14 | . . . . 5 14 Average Overweight (x) . | . . . . 1 . Largest Inventory Capacity 20 | 8 8 5 5 5 20 Average Capacity 7 | 6 7 5 5 5 11 Most Carried 5 | 4 5 5 5 5 5 Average Carried 4 | 2 4 4 4 4 3 Final Capacity 20 | 8 5 5 5 5 20 Final Carried 5 | 4 5 5 5 5 3 Class Distribution -------------------- 95% | Mutant 4% | Scavenger-Skirmisher Dominant Class ---------------- Mutant | -10/Materials Mutant | -10/Mines Mutant | -10/Exiles Mutant | -9/Mines Mutant | -8/Materials Resources | -11 -10 -10 -10 -9 -8 ----------- Run | Yrd Mat Min Exi Min Mat Matter Collected 626 | 91 25 352 . 158 . Remotely . | . . . . . . Salvage Created 291 | . 106 23 . 162 . Parts 28 | . 7 6 . 15 . Haulers Intercepted . | . . . . . . Recyclers Shooed 1 | . . 1 . . . Parts Field Recycled . | . . . . . . Retrieved Matter . | . . . . . . Parts Self-Destructed . | . . . . . . Prevented . | . . . . . . Kills | -11 -10 -10 -10 -9 -8 ------- Run | Yrd Mat Min Exi Min Mat Combat Hostiles Destroyed 12 | . . 5 . 7 . Guns 2 | . . . . 2 . Cannons 10 | . . 5 . 5 . Classes Destroyed 6 | . 2 3 . 1 . Builder 1 | . . 1 . . . Recycler 1 | . 1 . . . . Watcher 1 | . 1 . . . . Swarmer 7 | . . 3 . 4 . Grunt 3 | . . . . 3 . Demolisher 2 | . . 2 . . . Best Kill Streak 5 | . 1 5 . 3 . Combat Bots Only 5 | . . 5 . 3 . Max Kills in Single Turn 2 | . 1 1 . 2 . Gunslinging . | . . . . . . Exploded . | . . . . . . Melee . | . . . . . . Uniques/NPCs Destroyed . | . . . . . . Combat | -11 -10 -10 -10 -9 -8 -------- Run | Yrd Mat Min Exi Min Mat Hostile Shots Fired 192 | . . 47 . 40 105 Missed 49 | . . 15 . 12 22 Damage Taken 3045 | . . 580 . 245 2220 Core 666 | . . 60 . 44 562 Absorbed by Shields . | . . . . . . Redirected to Shielding 26 | . . . . 5 21 Core Remaining (%) 79 | 100 . . . 58 . Volleys Fired 63 | . 4 16 . 15 28 Largest 2 | . 2 2 . 2 2 Hottest 160 | . 70 70 . 160 156 Shots Fired 117 | . 8 30 . 28 51 Gun 27 | . 2 . . 3 22 Cannon 63 | . 6 30 . 22 5 Launcher . | . . . . . . Special 27 | . . . . 3 24 Kinetic 62 | . 8 30 . 17 7 Thermal 47 | . . . . 11 36 Explosive . | . . . . . . Electromagnetic 8 | . . . . . 8 Robot Hit Streak 5 | . 3 5 . 4 2 Robot Miss Streak 7 | . 3 2 . 4 7 Penetration Max . | . . . . . . Secondary Targets . | . . . . . . Shots Hit Robots 37 | . 4 19 . 11 3 Core Hits 21 | . 3 8 . 8 2 Critical Kills . | . . . . . . Critical Parts Destroyed . | . . . . . . Critical Strikes 2 | . . 1 . 1 . Blast 2 | . . 1 . 1 . Melee Attacks . | . . . . . . Impact . | . . . . . . Slashing . | . . . . . . Piercing . | . . . . . . Sneak Attacks . | . . . . . . Combat Hostiles . | . . . . . . Follow-up Attacks . | . . . . . . Damage Inflicted 681 | . 54 340 . 238 49 Guns 78 | . 7 . . 53 18 Cannons 603 | . 47 340 . 185 31 Explosions . | . . . . . . Melee . | . . . . . . Ramming . | . . . . . . Kinetic 592 | . 54 340 . 167 31 Thermal 71 | . . . . 71 . Explosive . | . . . . . . Electromagnetic 18 | . . . . . 18 Impact . | . . . . . . Slashing . | . . . . . . Piercing . | . . . . . . Highest Corruption 27 | . . . . . 27 Average Corruption 26 | . . . . . 26 Corruption Purged . | . . . . . . Corruption Blocked . | . . . . . . Effects 56 | . . . . . 56 Message Errors 12 | . . . . . 12 Matter Fused 17 | . . . . . 17 Heat Flow Errors 4 | . . . . . 4 Energy Discharges 3 | . . . . . 3 Parts Rejected 1 | . . . . . 1 Parts Fused 1 | . . . . . 1 Data Loss (minor) 5 | . . . . . 5 Data Loss (major) 3 | . . . . . 3 Misfires 6 | . . . . . 6 Alerts 2 | . . . . . 2 Misdirections 1 | . . . . . 1 Weapon Failures 1 | . . . . . 1 Overload Shots . | . . . . . . Overflow Damage 9 | . . 9 . . . Projectiles 9 | . . 9 . . . Explosions . | . . . . . . Melee . | . . . . . . Knockbacks 10 | . 1 5 . 1 3 Impact . | . . . . . . Kinetic 10 | . 1 5 . 1 3 Secondary . | . . . . . . Self-Inflicted Damage . | . . . . . . Shots . | . . . . . . Rammed . | . . . . . . Targets Rammed . | . . . . . . Kicked . | . . . . . . Crushed . | . . . . . . Highest Temperature 395 | . 18 42 . 150 395 Average Temperature 108 | . 9 20 . 54 165 Received Heat Transfer 885 | . . . . 30 855 Effects 6 | . . . . . 6 Shutdowns 2 | . . . . . 2 Energy Bleed 2 | . . . . . 2 Short Circuit 1 | . . . . . 1 Damage (minor) 1 | . . . . . 1 Siege Activations . | . . . . . . Robots Corrupted . | . . . . . . Combat Hostiles . | . . . . . . Parts Fried . | . . . . . . Impact Corruptions . | . . . . . . Robots Melted . | . . . . . . Combat Hostiles . | . . . . . . Parts Melted . | . . . . . . Heat Transferred 148 | . . . . 148 . Parts Sabotaged . | . . . . . . Parts Stolen . | . . . . . . Parts Stripped . | . . . . . . Power Chain Reactions . | . . . . . . Alert | -11 -10 -10 -10 -9 -8 ------- Run | Yrd Mat Min Exi Min Mat Peak Influence 155 | . 64 144 . 155 32 Initial 29 | . . 24 . . 29 Average 35 | . 19 122 . 46 4 Maximum Alert Level . | . . . . . . Low Security (%) 100 | 100 100 100 . 100 100 Level 1 . | . . . . . . Level 2 . | . . . . . . Level 3 . | . . . . . . Level 4 . | . . . . . . Level 5 . | . . . . . . High Security . | . . . . . . Max Security . | . . . . . . Squads Dispatched 3 | . 1 . . . 2 Investigation 1 | . . . . . 1 Extermination . | . . . . . . Reinforcement 2 | . 1 . . . 1 Assault . | . . . . . . Garrison . | . . . . . . Intercept . | . . . . . . Searches Triggered . | . . . . . . Construction Impeded . | . . . . . . Haulers Reinforced . | . . . . . . Active Scanning Responses . | . . . . . . Cargo Convoy Interrupts . | . . . . . . Stealth | -11 -10 -10 -10 -9 -8 --------- Run | Yrd Mat Min Exi Min Mat Distress Signals 4 | . 2 . . . 2 Communications Jammed . | . . . . . . Distress Signals . | . . . . . . Times Spotted 34 | . 6 5 . 9 14 Peak Tracking Total 10 | . 3 5 . 3 10 Tactical Retreats 1 | . . . . . 1 Traps | -11 -10 -10 -10 -9 -8 ------- Run | Yrd Mat Min Exi Min Mat Traps Triggered 1 | . . . . . 1 Indirectly . | . . . . . . Trap Hack Attempts . | . . . . . . Triggered . | . . . . . . Disarmed . | . . . . . . Reprogrammed . | . . . . . . Reused . | . . . . . . Traps Extracted . | . . . . . . Installed . | . . . . . . Triggered . | . . . . . . Machines | -11 -10 -10 -10 -9 -8 ---------- Run | Yrd Mat Min Exi Min Mat Machines Disabled 1 | . . . . 1 . Max in Single Turn 1 | . . . . 1 . Machines Repaired . | . . . . . . Machines Dismantled . | . . . . . . Machines Sabotaged . | . . . . . . Overloaded Fab Kills . | . . . . . . Hacking | -11 -10 -10 -10 -9 -8 --------- Run | Yrd Mat Min Exi Min Mat Machines Accessed 6 | . 2 . 1 . 3 Terminals 4 | . 2 . . . 2 Fabricators . | . . . . . . Repair Stations 1 | . . . . . 1 Recycling Units . | . . . . . . Scanalyzers . | . . . . . . Garrison Access . | . . . . . . Total Hacks 15 | . 3 . 1 . 11 Successful 3 | . 1 . 1 . 1 Failed 12 | . 2 . . . 10 Catastrophic 1 | . . . . . 1 Database Lockouts . | . . . . . . Manual 1 | . . . 1 . . Terminals 9 | . 3 . . . 6 Fabricators . | . . . . . . Repair Stations 5 | . . . . . 5 Recycling Units . | . . . . . . Scanalyzers . | . . . . . . Garrison Access . | . . . . . . Terminal Hacks 2 | . 1 . 1 . . Record 1 | . . . 1 . . Recall Investigation 1 | . 1 . . . . Fabricator Hacks . | . . . . . . Repair Station Hacks 1 | . . . . . 1 Scan Component 1 | . . . . . 1 Recycling Unit Hacks . | . . . . . . Scanalyzer . | . . . . . . Garrison Access Hacks . | . . . . . . Unauthorized Hacks . | . . . . . . Terminals . | . . . . . . Fabricators . | . . . . . . Repair Stations . | . . . . . . Recycling Units . | . . . . . . Scanalyzers . | . . . . . . Garrison Access . | . . . . . . Data Cores Recovered . | . . . . . . Used . | . . . . . . Hacking Detections 4 | . 1 . . . 3 Full Trace Events . | . . . . . . Feedback Events . | . . . . . . Feedback Blocked . | . . . . . . Robot Schematics Acquired . | . . . . . . Robots Built . | . . . . . . Authchips . | . . . . . . Time . | . . . . . . Total Robot Build Rating . | . . . . . . Part Schematics Acquired . | . . . . . . Parts Built . | . . . . . . Authchips . | . . . . . . Time . | . . . . . . Total Part Build Rating . | . . . . . . Parts Repaired . | . . . . . . Time . | . . . . . . Parts Recycled . | . . . . . . Recycled Matter . | . . . . . . Retrieved Matter . | . . . . . . Retrieved Components . | . . . . . . Parts Scanalyzed . | . . . . . . Part Schematics Acquired . | . . . . . . Parts Damaged . | . . . . . . Bothacking | -11 -10 -10 -10 -9 -8 ------------ Run | Yrd Mat Min Exi Min Mat Used RIF Installer . | . . . . . . Robots Hacked . | . . . . . . Non-combat . | . . . . . . Combat . | . . . . . . Robot Hacks Applied . | . . . . . . Relay Couplers Released . | . . . . . . Fabnet Peak Effective % . | . . . . . . Robots Rewired . | . . . . . . Allies Hacked . | . . . . . . Hacks Repelled . | . . . . . . Allies | -11 -10 -10 -10 -9 -8 -------- Run | Yrd Mat Min Exi Min Mat Total Allies 1 | . . . . 1 . Largest Group 1 | . . . . 1 . Highest-Rated Group 31 | . . . . 31 . Highest-Rated Ally 31 | . . . . 31 . Total Orders . | . . . . . . Ally Attacks 9 | . . . . 9 . Total Damage 148 | . . . . 148 . Kills 2 | . . . . 2 . Allies Corrupted . | . . . . . . Allies Melted . | . . . . . . Intel | -11 -10 -10 -10 -9 -8 ------- Run | Yrd Mat Min Exi Min Mat Robot Analysis Total . | . . . . . . Derelict Logs Recovered 3 | . . 1 . 2 . Drone Launches . | . . . . . . Drone Recoveries . | . . . . . . Exploration | -11 -10 -10 -10 -9 -8 ------------- Run | Yrd Mat Min Exi Min Mat Turns Passed 3653 | 74 287 428 582 941 1341 Spaces Moved 1732 | 40 160 226 362 476 468 Core 6 | 2 . . . 1 3 Treads 848 | 38 160 226 362 3 59 Legs 122 | . . . . . 122 Wheels 230 | . . . . . 230 Hover . | . . . . . . Flight 526 | . . . . 472 54 Fastest Speed 50 | 50 160 160 160 117 80 Average Speed 146 | 154 160 160 160 118 152 Slowest Speed 750 | 160 160 160 160 300 750 Overloaded Moves . | . . . . . . Propulsion Burnouts . | . . . . . . Robots Hopped . | . . . . . . Cave-ins Triggered 4 | . . . . . 4 Exploration Rate (%) 43 | 3 25 60 64 83 26 Regions Visited 5 Branch Regions 3 Pre-discovered Areas 2 | . . 1 . 1 . Known Exits Taken . | . . . . . . Unknown Exits Taken 5 | 1 1 1 1 1 . Scrap Searched 1 | . . . . 1 . Spaces Dug 24 | . . . . . 24 Terrain Destroyed 28 | . . 1 . 3 24 Melee . | . . . . . . Projectile 28 | . . 1 . 3 24 AOE . | . . . . . . Terrain Rammed . | . . . . . . Walls Destroyed . | . . . . . . Machines Disabled . | . . . . . . Actions | -11 -10 -10 -10 -9 -8 --------- Run | Yrd Mat Min Exi Min Mat Total 2678 | 50 184 263 365 820 996 Wait 804 | . 7 13 . 308 476 Move 1727 | 39 159 225 361 475 468 Hop . | . . . . . . Pick Up 21 | 5 4 4 2 3 3 Fast Attach 23 | 5 4 . . 6 8 Attach 8 | 1 . 2 . . 5 Detach 2 | . . . . 1 1 Swap 9 | . . 1 1 2 5 Drop 21 | . 6 2 1 10 2 Fire 63 | . 4 16 . 15 28 Melee . | . . . . . . Ram . | . . . . . . Kick . | . . . . . . Crush . | . . . . . . Escape Stasis . | . . . . . . Rewire . | . . . . . . Trap . | . . . . . . Miscellaneous . | . . . . . . Route ------- -11/Scrapyard -10/Materials -10/Mines -10/Exiles (discovered 2 exits: [*Min x2]) -9/Mines -8/Materials (discovered 1 exit: Fac) History --------- Turn | Location | Event 6 | -11/Scrapyard | Discovered new exit (range 15) 75 | -11/Scrapyard | Entered Materials 219 | -10/Materials | Discovered new exit (range 14) 308 | -10/Materials | Build established: Mutant 362 | -10/Materials | Entered Mines 368 | -10/Mines | Assembled infested the area 466 | -10/Mines | Learned location of Storage (-7) 782 | -10/Mines | Discovered new exit (range 5) 790 | -10/Mines | Entered Exiles 816 | -10/Exiles | Discovered new exit (range 16) 848 | -10/Exiles | Met 8R-AWN 874 | -10/Exiles | Met EX-HEX 942 | -10/Exiles | Met EX-BIN 960 | -10/Exiles | Aligned with FarCom system 962 | -10/Exiles | Given EX-Vault access code 1002 | -10/Exiles | Opened EX-Vault 1013 | -10/Exiles | Found Prototype Storage 1014 | -10/Exiles | Identified Superbattery 1057 | -10/Exiles | Warned to stay clear of 0b10 Research branches 1108 | -10/Exiles | Met EX-DEC 1170 | -10/Exiles | Discovered new exit (range 14) 1372 | -10/Exiles | Left Exiles lab with Superbattery 1372 | -10/Exiles | Entered Mines 2026 | -9/Mines | Received a Mining Laser from a helpful Derelict 2258 | -9/Mines | Discovered new exit (range 12) 2313 | -9/Mines | Entered Materials 2313 | -8/Materials | Evolved 4 slots: Power x1, Propulsion x1, Utility x2 2314 | -8/Materials | Identified exit to Factory 2489 | -8/Materials | Crushed by falling debris 2489 | -8/Materials | System corruption reached 10% 2500 | -8/Materials | Crushed by falling debris 2503 | -8/Materials | Crushed by falling debris 2534 | -8/Materials | Lost 6 parts (2n4u) 2552 | -8/Materials | Crushed by falling debris 3617 | -8/Materials | Core integrity fell below 50% 3644 | -8/Materials | Core integrity fell below 20% 3654 | -8/Materials | Destroyed by G-50 Soldier with Heavy Laser Last Messages --------------- System corrupted: Heat flow error (+235). System corrupted: Component data lost. W-25 Informer sends out distress signal. System corrupted: Flak Cannon jammed. System corrupted: Matter fused (-5). Critical hit (Burn: +37). System corrupted: Cooling System rejected. Shock Rifle destroyed. Flak Cannon destroyed. T-07 Excavator is excavating. W-25 Informer sends out distress signal. Reactive Plating destroyed. System corrupted: Component data lost. Titanium Leg destroyed. Critical hit (Burn: +37). System corrupted: Component data lost. Imp. Flight Unit destroyed. Wheel destroyed. Particle Gun destroyed. Critical hit (Burn: +37). Map ----- +----------------------------------------------------+ | ?????????????????????????????????? " ?# | | ?????????????????????????????????? ?# | | ????????????????????????????????? # | | ????????????????????????????????? ## | | ????????????????????????????????? | | ????????????????????????????????? ## | | ????????????????????????????????? ?? | | ?????????????????????????????????? ??? | | ?????????????????????????????????? ??? | | ??????????????????????????w???????? ???? | | ??????????????????????????????????? ???? | | ???????????????????????????????????###### ? ??? | | ????????????????????????????????????????# ? ## | | ???????????????????????????????????????? ?? | | ??????????????????????????????????????? ??? | | ??????????????????????????????????????] ?????? | | ??????????????????????????????????????? ??????? | | ?????????????????????????????????????????#???????? | | ???????????w?????????????????????????????????????? | | ?????????????????????????????????????????????????? | | ?????????????????????????????????????????????????? | | ??????????????????????????????????################ | | ??????????????????????????????????+ | | ??????????????????????????????????# #### | | ?????????????????+################# g #??# ## | | ????????????????# g @ gg #??#+#? | | ????????????????# ########### g g #?????? | | ????????????????????????????# #?????? | | ????????????????????????????# ####+##### #?????? | | ?????????????????g????????###/#### ######?????? | | ????????????????????#####?# # #??????????? | | ????????????????????# # # #??????????? | | ??????????????????### # ""# #??????????? | | ????????????????+ w g + !Y"# #??????????? | | ??????????????????### # ""# #??????????? | | ????????????????????# # # #??????????? | | ????????????gg??????### #?##+##### #??????????? | | ????????????????????? ???###???# #??????????? | | ???????????????????? ??????????######??????????? | | ???????????????????# ???????????????????????????? | | ???????????????????# ????????????????????????????? | | ???????????????????##????????????????????????????? | | ?????????????????????????????????????????????????? | | ?????????????????????????????????????????????????? | | ?????????????????????????????????????????????????? | | ?????????????????????????????????????????????????? | | ?????????????????????????????????????????????????? | | ?????????????????????????????????????????????????? | | ?????????????????????????????????????????????????? | | ?????????????????????????????????????????????????? | +----------------------------------------------------+ Best States ------------- Heat Dissipation 53 Energy Generation 10 Energy Capacity 1750 Matter Stores 300 Matter Capacity 300 Sight Range 18 Terrain Scan Range 14 Terrain Scan Density 85 Armor Coverage 150 Resistance: KI 20 Utility Shielding 33 Evasion (%) 45 Recoil Reduction 2 Item Schematics ----------------- None Robot Schematics ------------------ None Fabricated ------------ Nothing Alien Tech Used ----------------- None Achievements -------------- None Challenges ------------ None Game ------ Seed SlugSpikedCore Manual? 0 Play Time 00:25:18 Cumulative 6.1 hours Start 2024.05.12 @ 19:25:20 End 2024.05.12 @ 19:49:30 Sessions 1 Manual Loads 0 Difficulty Rogue Special Mode None Game No. 8 Rogue 8 Adventurer 0 Explorer 0 Win Type - Total 0 Types 0/0/0/0/0/0/0/0/0 Lore% 13 Gallery% 15 Achievement% 12 Wizard Run 0 Options --------- Layout 1 ASCII 0 Keyboard 0 Movement Mouse Keybinds 0 Fullscreen 1 Font 24/Smallcaps Map View 50x35 Zoom Use 0% Tactical HUD 0 Map Filters NONE Filters NONE Steam 1 RUN: cf46a134-3302-47b9-bef8-738e5213acf8